[Event "*** Titled Tuesday Blitz"]
[Site "Chess.com"]
[Date "2019.07.02"]
[Round "1"]
[White "BlackBoarder"]
[Black "JuliaEfremova"]
[Result "1-0"]
[WhiteElo "2498"]
[BlackElo "1910"]
[TimeControl "180+2"]
[EndTime "13:06:00 PDT"]
[Termination "BlackBoarder won by resignation"]

1. e4 {[%clk 0:02:56.3]} 1... c6 {[%clk 0:02:58.4]} 2. Nf3 {[%clk 0:02:57.2]}
2... d5 {[%clk 0:02:57.7]} 3. Nc3 {[%clk 0:02:58.7]} 3... dxe4 {[%clk 0:02:57]}
4. Nxe4 {[%clk 0:02:54.2]} 4... Nd7 {[%clk 0:02:57.7]} 5. Bc4 {[%clk 0:02:53.2]}
5... e6 {[%clk 0:02:55.9]} 6. Qe2 {[%clk 0:02:54]} 6... Nb6 {[%clk 0:02:49.9]}
7. Ne5 {[%clk 0:02:39.9]} 7... Nxc4 {[%clk 0:02:47.6]} 8. Nxc4 {[%clk
0:02:34.6]} 8... Nf6 {[%clk 0:02:44.5]} 9. c3 {[%clk 0:02:30.7]} 9... Nxe4
{[%clk 0:02:44.1]} 10. Qxe4 {[%clk 0:02:30.6]} 10... Qd5 {[%clk 0:02:44.9]} 11.
d3 {[%clk 0:02:25.7]} 11... Qxe4+ {[%clk 0:02:19.9]} 12. dxe4 {[%clk 0:02:25.9]}
12... b5 {[%clk 0:02:21.2]} 13. Na5 {[%clk 0:02:22.8]} 13... Bd7 {[%clk
0:02:18.6]} 14. Be3 {[%clk 0:02:15.7]} 14... c5 {[%clk 0:02:13.1]} 15. O-O-O
{[%clk 0:02:14.6]} 15... c4 {[%clk 0:01:47.3]} 16. Rd2 {[%clk 0:02:00.5]} 16...
Be7 {[%clk 0:01:36.6]} 17. Rhd1 {[%clk 0:02:00.7]} 17... Bd8 {[%clk 0:01:27.1]}
18. Nb7 {[%clk 0:01:48.2]} 18... O-O {[%clk 0:01:22.3]} 19. Rxd7 {[%clk
0:01:43.5]} 19... Bf6 {[%clk 0:01:20]} 20. f4 {[%clk 0:01:37.4]} 20... g6 {[%clk
0:01:12.1]} 21. e5 {[%clk 0:01:37.9]} 21... Bg7 {[%clk 0:01:12.6]} 22. Rd8
{[%clk 0:01:39.2]} 22... a5 {[%clk 0:01:11.4]} 23. Rxa8 {[%clk 0:01:39.1]} 23...
Rxa8 {[%clk 0:01:11.7]} 24. Rd8+ {[%clk 0:01:40.7]} 24... Rxd8 {[%clk
0:01:13.1]} 25. Nxd8 {[%clk 0:01:42.6]} 25... b4 {[%clk 0:01:11.7]} 26. Nc6
{[%clk 0:01:42.3]} 26... bxc3 {[%clk 0:01:11.4]} 27. bxc3 {[%clk 0:01:43.7]}
27... a4 {[%clk 0:01:12.8]} 28. Na5 {[%clk 0:01:45]} 28... g5 {[%clk 0:01:10.9]}
29. Nxc4 {[%clk 0:01:45.1]} 29... gxf4 {[%clk 0:01:11.7]} 30. Bxf4 {[%clk
0:01:47]} 30... f6 {[%clk 0:01:12.4]} 31. exf6 {[%clk 0:01:45.5]} 31... Bxf6
{[%clk 0:01:13.5]} 32. Ne5 {[%clk 0:01:46.9]} 32... Kg7 {[%clk 0:01:05.7]} 33.
Kc2 {[%clk 0:01:47.8]} 1-0

[Event "*** Titled Tuesday Blitz"]
[Site "Chess.com"]
[Date "2019.07.02"]
[Round "1"]
[White "GameOverBro"]
[Black "Bigfish1995"]
[Result "1-0"]
[WhiteElo "2481"]
[BlackElo "2948"]
[TimeControl "180+2"]
[EndTime "13:06:06 PDT"]
[Termination "GameOverBro won on time"]

1. e4 {[%clk 0:03:01.9]} 1... c5 {[%clk 0:02:44.8]} 2. Ne2 {[%clk 0:03:02.4]}
2... g6 {[%clk 0:02:02.5]} 3. Nbc3 {[%clk 0:03:03.3]} 3... Bg7 {[%clk
0:01:46.3]} 4. d4 {[%clk 0:03:04.4]} 4... Na6 {[%clk 0:01:46.5]} 5. g3 {[%clk
0:03:05.2]} 5... d6 {[%clk 0:01:45.3]} 6. Bg2 {[%clk 0:03:06.4]} 6... Nf6 {[%clk
0:01:45.7]} 7. O-O {[%clk 0:03:07.4]} 7... O-O {[%clk 0:01:46.8]} 8. h3 {[%clk
0:03:08.4]} 8... Qc7 {[%clk 0:01:40.7]} 9. Be3 {[%clk 0:03:06.2]} 9... Bd7
{[%clk 0:01:40.3]} 10. a4 {[%clk 0:03:04.2]} 10... Nb4 {[%clk 0:01:30.4]} 11. g4
{[%clk 0:02:47.3]} 11... a6 {[%clk 0:01:19.1]} 12. f4 {[%clk 0:02:34.7]} 12...
cxd4 {[%clk 0:01:06.5]} 13. Nxd4 {[%clk 0:02:33.5]} 13... e5 {[%clk 0:01:06.6]}
14. Nb3 {[%clk 0:02:20.6]} 14... exf4 {[%clk 0:00:50.7]} 15. Bxf4 {[%clk
0:02:22.5]} 15... Qb6+ {[%clk 0:00:38.8]} 16. Kh1 {[%clk 0:02:22.4]} 16... Be6
{[%clk 0:00:39.7]} 17. a5 {[%clk 0:02:22.6]} 17... Qa7 {[%clk 0:00:35.1]} 18.
Nd4 {[%clk 0:02:23.5]} 18... Rad8 {[%clk 0:00:31.9]} 19. Be3 {[%clk 0:02:20.4]}
19... Qb8 {[%clk 0:00:25.8]} 20. Ra4 {[%clk 0:02:21.1]} 20... Nc6 {[%clk
0:00:25.7]} 21. Nxe6 {[%clk 0:02:20.8]} 21... fxe6 {[%clk 0:00:26.1]} 22. Bb6
{[%clk 0:02:22.3]} 22... Rc8 {[%clk 0:00:21.8]} 23. Ne2 {[%clk 0:02:08.8]} 23...
Ne5 {[%clk 0:00:21.2]} 24. b3 {[%clk 0:02:08.3]} 24... Rfe8 {[%clk 0:00:18.4]}
25. Nf4 {[%clk 0:02:09.2]} 25... Nfd7 {[%clk 0:00:10.5]} 26. Bd4 {[%clk
0:02:05.8]} 1-0

[Event "*** Titled Tuesday Blitz"]
[Site "Chess.com"]
[Date "2019.07.02"]
[Round "1"]
[White "FedaMaster"]
[Black "ethylalcohol"]
[Result "1-0"]
[WhiteElo "2514"]
[BlackElo "2087"]
[TimeControl "180+2"]
[EndTime "13:06:14 PDT"]
[Termination "FedaMaster won on time"]

1. e4 {[%clk 0:03:01.5]} 1... e6 {[%clk 0:02:59.3]} 2. d4 {[%clk 0:03:01.2]}
2... d5 {[%clk 0:03:00.1]} 3. Nc3 {[%clk 0:03:02.1]} 3... Nf6 {[%clk 0:02:59.6]}
4. Bg5 {[%clk 0:02:44.8]} 4... dxe4 {[%clk 0:02:59.9]} 5. Nxe4 {[%clk
0:02:44.8]} 5... Nbd7 {[%clk 0:03:00.8]} 6. Nf3 {[%clk 0:02:45]} 6... h6 {[%clk
0:03:00.9]} 7. Nxf6+ {[%clk 0:02:39.9]} 7... Nxf6 {[%clk 0:03:00.8]} 8. Bd2
{[%clk 0:02:40.8]} 8... c5 {[%clk 0:02:56.8]} 9. Bd3 {[%clk 0:02:23.1]} 9...
cxd4 {[%clk 0:02:46.1]} 10. Qe2 {[%clk 0:02:23.5]} 10... Be7 {[%clk 0:02:41]}
11. O-O-O {[%clk 0:02:23.5]} 11... O-O {[%clk 0:02:26.8]} 12. g4 {[%clk
0:02:19.4]} 12... Qb6 {[%clk 0:01:46]} 13. Ne5 {[%clk 0:02:06.3]} 13... Bd7
{[%clk 0:01:21.3]} 14. h4 {[%clk 0:02:03.5]} 14... Bc6 {[%clk 0:00:31.3]} 15. g5
{[%clk 0:01:40]} 15... Bxh1 {[%clk 0:00:16.1]} 16. gxf6 {[%clk 0:01:40.8]} 16...
Bxf6 {[%clk 0:00:11.6]} 17. Rxh1 {[%clk 0:01:38.1]} 17... Qc7 {[%clk 0:00:09.9]}
18. Bf4 {[%clk 0:01:30.7]} 18... Qc8 {[%clk 0:00:07]} 19. Qe4 {[%clk 0:01:28.9]}
19... g6 {[%clk 0:00:03.9]} 20. Bxh6 {[%clk 0:01:29.8]} 20... Bg7 {[%clk
0:00:03.5]} 21. Bxg7 {[%clk 0:01:28.9]} 21... Kxg7 {[%clk 0:00:04.2]} 22. Nxg6
{[%clk 0:01:30.8]} 1-0

[Event "*** Titled Tuesday Blitz"]
[Site "Chess.com"]
[Date "2019.07.02"]
[Round "1"]
[White "Kubas1010"]
[Black "edgarrodrigues"]
[Result "1-0"]
[WhiteElo "2612"]
[BlackElo "2267"]
[TimeControl "180+2"]
[EndTime "13:06:15 PDT"]
[Termination "Kubas1010 won by resignation"]

1. d4 {[%clk 0:03:01.9]} 1... Nf6 {[%clk 0:02:59.3]} 2. c4 {[%clk 0:03:02.8]}
2... c5 {[%clk 0:03:00.2]} 3. Nf3 {[%clk 0:03:01.6]} 3... cxd4 {[%clk
0:03:00.5]} 4. Nxd4 {[%clk 0:03:03.5]} 4... Qc7 {[%clk 0:03:01.1]} 5. Nc3 {[%clk
0:03:01.4]} 5... a6 {[%clk 0:03:00.5]} 6. g3 {[%clk 0:02:51.3]} 6... b6 {[%clk
0:03:00.3]} 7. Bg2 {[%clk 0:02:52.3]} 7... Bb7 {[%clk 0:03:01.1]} 8. Nd5 {[%clk
0:02:50.3]} 8... Nxd5 {[%clk 0:02:49.9]} 9. cxd5 {[%clk 0:02:51.3]} 9... e5
{[%clk 0:02:42.4]} 10. Nf5 {[%clk 0:02:38.7]} 10... d6 {[%clk 0:02:40]} 11. O-O
{[%clk 0:02:36.1]} 11... g6 {[%clk 0:02:39.8]} 12. Nh6 {[%clk 0:02:23]} 12...
Nd7 {[%clk 0:02:33]} 13. e4 {[%clk 0:02:23.4]} 13... Rc8 {[%clk 0:02:32.6]} 14.
Be3 {[%clk 0:02:17.9]} 14... Be7 {[%clk 0:02:17.5]} 15. Bh3 {[%clk 0:02:14.5]}
15... b5 {[%clk 0:01:58.9]} 16. Rc1 {[%clk 0:02:11.1]} 16... Qd8 {[%clk
0:01:59.6]} 17. Qg4 {[%clk 0:02:02.6]} 17... Rc4 {[%clk 0:01:45.3]} 18. Nxf7
{[%clk 0:01:39.2]} 18... Kxf7 {[%clk 0:01:42.6]} 19. Rxc4 {[%clk 0:01:39.3]}
19... bxc4 {[%clk 0:01:39.1]} 20. Qxd7 {[%clk 0:01:40.5]} 20... Qxd7 {[%clk
0:01:41]} 21. Bxd7 {[%clk 0:01:42]} 21... Rd8 {[%clk 0:01:37.8]} 22. Be6+ {[%clk
0:01:42.6]} 22... Kg7 {[%clk 0:01:38]} 23. Rc1 {[%clk 0:01:42.9]} 23... Bc8
{[%clk 0:01:38.9]} 24. Rxc4 {[%clk 0:01:40.3]} 24... Bxe6 {[%clk 0:01:39.6]} 25.
dxe6 {[%clk 0:01:42.2]} 25... Kf6 {[%clk 0:01:41]} 26. Ra4 {[%clk 0:01:36.2]}
26... Ra8 {[%clk 0:01:41.6]} 27. b4 {[%clk 0:01:37.4]} 27... Kxe6 {[%clk
0:01:38.4]} 28. Kf1 {[%clk 0:01:32.5]} 28... d5 {[%clk 0:01:33.5]} 29. exd5+
{[%clk 0:01:33.2]} 29... Kxd5 {[%clk 0:01:35.4]} 30. Ke2 {[%clk 0:01:35.1]}
30... Kc4 {[%clk 0:01:34.6]} 31. a3 {[%clk 0:01:33]} 31... Bd6 {[%clk 0:01:31]}
32. Ra5 {[%clk 0:01:30.2]} 32... h5 {[%clk 0:01:26.7]} 33. Kf3 {[%clk 0:01:27]}
33... Rf8+ {[%clk 0:01:16.8]} 34. Ke4 {[%clk 0:01:28.1]} 1-0

[Event "*** Titled Tuesday Blitz"]
[Site "Chess.com"]
[Date "2019.07.02"]
[Round "1"]
[White "ChessQueen"]
[Black "tteshan"]
[Result "1/2-1/2"]
[WhiteElo "2592"]
[BlackElo "2247"]
[TimeControl "180+2"]
[EndTime "13:06:16 PDT"]
[Termination "Game drawn by repetition"]

1. Nf3 {[%clk 0:03:01.9]} 1... c5 {[%clk 0:02:58.6]} 2. g3 {[%clk 0:03:00.7]}
2... Nc6 {[%clk 0:02:58.3]} 3. Bg2 {[%clk 0:03:01.5]} 3... g6 {[%clk 0:02:59.6]}
4. d4 {[%clk 0:03:01.6]} 4... cxd4 {[%clk 0:03:00.1]} 5. Nxd4 {[%clk 0:03:02.7]}
5... Bg7 {[%clk 0:03:01.5]} 6. Nb3 {[%clk 0:02:59.8]} 6... Nf6 {[%clk 0:03:02]}
7. e4 {[%clk 0:02:59.7]} 7... d6 {[%clk 0:03:02.1]} 8. O-O {[%clk 0:03:00.4]}
8... O-O {[%clk 0:03:02.5]} 9. c4 {[%clk 0:03:00.9]} 9... Be6 {[%clk 0:03:01.2]}
10. Na3 {[%clk 0:02:56.7]} 10... Rc8 {[%clk 0:02:58.3]} 11. f4 {[%clk
0:02:33.6]} 11... Qb6+ {[%clk 0:02:38.6]} 12. Kh1 {[%clk 0:02:34.2]} 12... a5
{[%clk 0:02:20.3]} 13. Qe1 {[%clk 0:02:09.3]} 13... Nb4 {[%clk 0:02:15.8]} 14.
Be3 {[%clk 0:02:05.3]} 14... Qa6 {[%clk 0:02:11]} 15. e5 {[%clk 0:01:51]} 15...
Ng4 {[%clk 0:02:03.9]} 16. Bd4 {[%clk 0:01:35.1]} 16... Bxc4 {[%clk 0:01:55.8]}
17. Nxc4 {[%clk 0:01:35.6]} 17... Rxc4 {[%clk 0:01:49.4]} 18. Qd1 {[%clk
0:01:31.5]} 18... Nh6 {[%clk 0:01:40.7]} 19. exd6 {[%clk 0:01:22.1]} 19... Qxd6
{[%clk 0:01:33.4]} 20. Bxg7 {[%clk 0:01:22.5]} 20... Kxg7 {[%clk 0:01:34.2]} 21.
Qxd6 {[%clk 0:01:22.6]} 21... exd6 {[%clk 0:01:36.1]} 22. Nxa5 {[%clk 0:01:24]}
22... Rc2 {[%clk 0:01:32.4]} 23. Nxb7 {[%clk 0:01:24.1]} 23... Rxb2 {[%clk
0:01:20.2]} 24. a4 {[%clk 0:01:23.9]} 24... d5 {[%clk 0:01:17.5]} 25. Rfb1
{[%clk 0:01:20.5]} 25... Rxb1+ {[%clk 0:01:10.3]} 26. Rxb1 {[%clk 0:01:22.4]}
26... Nd3 {[%clk 0:01:03.5]} 27. Bxd5 {[%clk 0:01:21.7]} 27... Ng4 {[%clk
0:01:00.9]} 28. Bf3 {[%clk 0:01:18.3]} 28... Ne3 {[%clk 0:00:54.5]} 29. Rb3
{[%clk 0:01:13]} 29... Nf2+ {[%clk 0:00:54.6]} 30. Kg1 {[%clk 0:01:12.5]} 30...
Nh3+ {[%clk 0:00:55.9]} 31. Kh1 {[%clk 0:01:13.7]} 31... Nf2+ {[%clk 0:00:57.4]}
32. Kg1 {[%clk 0:01:14.8]} 32... Nh3+ {[%clk 0:00:58.9]} 33. Kh1 {[%clk
0:01:16]} 33... Nf2+ {[%clk 0:00:59]} 1/2-1/2

[Event "*** Titled Tuesday Blitz"]
[Site "Chess.com"]
[Date "2019.07.02"]
[Round "1"]
[White "Hikaru"]
[Black "AdrianaNikolova"]
[Result "1-0"]
[WhiteElo "3150"]
[BlackElo "2476"]
[TimeControl "180+2"]
[EndTime "13:06:17 PDT"]
[Termination "Hikaru won by resignation"]

1. e4 {[%clk 0:03:01.8]} 1... c5 {[%clk 0:02:54.1]} 2. Nc3 {[%clk 0:03:03.7]}
2... Nc6 {[%clk 0:02:54.7]} 3. f4 {[%clk 0:03:02.2]} 3... g6 {[%clk 0:02:53.1]}
4. Nf3 {[%clk 0:03:04.1]} 4... Bg7 {[%clk 0:02:54.4]} 5. Bc4 {[%clk 0:03:06]}
5... e6 {[%clk 0:02:50.2]} 6. f5 {[%clk 0:03:06.8]} 6... a6 {[%clk 0:02:34.3]}
7. fxe6 {[%clk 0:02:59.8]} 7... dxe6 {[%clk 0:02:16]} 8. a4 {[%clk 0:02:56.6]}
8... Nge7 {[%clk 0:01:53.3]} 9. O-O {[%clk 0:02:57.3]} 9... O-O {[%clk
0:01:51.9]} 10. d3 {[%clk 0:02:57.7]} 10... Nd4 {[%clk 0:01:42.4]} 11. Nxd4
{[%clk 0:02:55.3]} 11... Qxd4+ {[%clk 0:01:39]} 12. Kh1 {[%clk 0:02:56.1]} 12...
Nc6 {[%clk 0:01:32.5]} 13. Qe1 {[%clk 0:02:56.2]} 13... Ne5 {[%clk 0:01:28.9]}
14. Bb3 {[%clk 0:02:50.1]} 14... b6 {[%clk 0:01:20.5]} 15. Be3 {[%clk
0:02:35.3]} 15... Qd6 {[%clk 0:01:19.7]} 16. Qg3 {[%clk 0:02:36]} 16... Qd7
{[%clk 0:01:04.9]} 17. a5 {[%clk 0:02:35.6]} 17... c4 {[%clk 0:00:32.1]} 18.
dxc4 {[%clk 0:02:34.6]} 18... bxa5 {[%clk 0:00:31.2]} 19. Na4 {[%clk 0:02:28.1]}
19... Rb8 {[%clk 0:00:22.9]} 20. Nc5 {[%clk 0:02:19.7]} 20... Qc6 {[%clk
0:00:21.8]} 21. Rxa5 {[%clk 0:02:18.1]} 21... Rb4 {[%clk 0:00:19.7]} 22. Bd4
{[%clk 0:01:47.2]} 22... Nxc4 {[%clk 0:00:19.2]} 23. Bxg7 {[%clk 0:01:48.3]}
23... Kxg7 {[%clk 0:00:18]} 24. Qc3+ {[%clk 0:01:48.5]} 24... e5 {[%clk
0:00:18.4]} 25. Qxb4 {[%clk 0:01:49.1]} 25... Nxa5 {[%clk 0:00:16.2]} 26. Qxa5
{[%clk 0:01:51]} 26... Bg4 {[%clk 0:00:12]} 27. Qc3 {[%clk 0:01:48.6]} 27... Be2
{[%clk 0:00:10.4]} 28. Ne6+ {[%clk 0:01:46.7]} 1-0

[Event "*** Titled Tuesday Blitz"]
[Site "Chess.com"]
[Date "2019.07.02"]
[Round "1"]
[White "Bagirova"]
[Black "Rish_97"]
[Result "0-1"]
[WhiteElo "1893"]
[BlackElo "2498"]
[TimeControl "180+2"]
[EndTime "13:06:19 PDT"]
[Termination "Rish_97 won on time"]

1. e4 {[%clk 0:03:01.1]} 1... e5 {[%clk 0:02:58]} 2. Nf3 {[%clk 0:03:01.1]} 2...
Nc6 {[%clk 0:02:57.5]} 3. Bc4 {[%clk 0:03:01.8]} 3... Nf6 {[%clk 0:02:55.8]} 4.
d3 {[%clk 0:03:00.6]} 4... h6 {[%clk 0:02:55.7]} 5. c3 {[%clk 0:03:00.2]} 5...
g5 {[%clk 0:02:56.4]} 6. d4 {[%clk 0:02:41.4]} 6... d6 {[%clk 0:02:33]} 7. dxe5
{[%clk 0:02:39.5]} 7... Nxe5 {[%clk 0:02:32.7]} 8. Nxe5 {[%clk 0:02:38.8]} 8...
dxe5 {[%clk 0:02:33.9]} 9. Bxf7+ {[%clk 0:02:39]} 9... Ke7 {[%clk 0:02:34.5]}
10. Qxd8+ {[%clk 0:02:34.4]} 10... Kxd8 {[%clk 0:02:36.4]} 11. O-O {[%clk
0:02:29.2]} 11... Nxe4 {[%clk 0:02:36.3]} 12. Re1 {[%clk 0:02:23.2]} 12... Nd6
{[%clk 0:02:36.7]} 13. Bb3 {[%clk 0:01:35.3]} 13... Bg7 {[%clk 0:02:31.4]} 14.
Nd2 {[%clk 0:01:25.5]} 14... Bf5 {[%clk 0:02:25.5]} 15. Nc4 {[%clk 0:00:54.6]}
15... Nxc4 {[%clk 0:01:47.7]} 16. Bxc4 {[%clk 0:00:35.3]} 16... c6 {[%clk
0:01:38.8]} 17. Be3 {[%clk 0:00:26.6]} 17... Kc7 {[%clk 0:01:39.9]} 18. Rad1
{[%clk 0:00:19.2]} 18... Rhd8 {[%clk 0:01:39.5]} 19. Rxd8 {[%clk 0:00:18.2]}
19... Rxd8 {[%clk 0:01:39.5]} 20. h3 {[%clk 0:00:14]} 20... a5 {[%clk
0:01:38.5]} 0-1

[Event "*** Titled Tuesday Blitz"]
[Site "Chess.com"]
[Date "2019.07.02"]
[Round "1"]
[White "Komissarov_alex"]
[Black "Yurovskykh_Oleksandr"]
[Result "0-1"]
[WhiteElo "2140"]
[BlackElo "2536"]
[TimeControl "180+2"]
[EndTime "13:06:32 PDT"]
[Termination "Yurovskykh_Oleksandr won on time"]

1. d4 {[%clk 0:03:00.8]} 1... d5 {[%clk 0:02:55.4]} 2. Nf3 {[%clk 0:02:58.5]}
2... Nf6 {[%clk 0:02:56.1]} 3. e3 {[%clk 0:02:58.5]} 3... Bf5 {[%clk 0:02:54]}
4. c4 {[%clk 0:02:57.2]} 4... e6 {[%clk 0:02:53.7]} 5. Nc3 {[%clk 0:02:57.2]}
5... c6 {[%clk 0:02:51]} 6. Nh4 {[%clk 0:02:57]} 6... Be4 {[%clk 0:02:49.4]} 7.
f3 {[%clk 0:02:56.1]} 7... Bg6 {[%clk 0:02:50.1]} 8. Nxg6 {[%clk 0:02:56.6]}
8... hxg6 {[%clk 0:02:52]} 9. Qb3 {[%clk 0:02:50.8]} 9... Qb6 {[%clk 0:02:46.9]}
10. c5 {[%clk 0:02:45.6]} 10... Qc7 {[%clk 0:02:46.7]} 11. f4 {[%clk 0:02:42.6]}
11... Nbd7 {[%clk 0:02:43.6]} 12. Qd1 {[%clk 0:02:35.9]} 12... b6 {[%clk
0:02:34.4]} 13. b4 {[%clk 0:02:27.5]} 13... a5 {[%clk 0:02:34.3]} 14. cxb6
{[%clk 0:02:23.6]} 14... Qxb6 {[%clk 0:02:32.5]} 15. bxa5 {[%clk 0:02:22.5]}
15... Qxa5 {[%clk 0:02:27.9]} 16. Bd2 {[%clk 0:02:13.7]} 16... Be7 {[%clk
0:01:40.2]} 17. Rc1 {[%clk 0:01:47.3]} 17... O-O {[%clk 0:01:37.2]} 18. Bd3
{[%clk 0:01:34.7]} 18... Qa3 {[%clk 0:01:31.7]} 19. O-O {[%clk 0:01:28.7]} 19...
c5 {[%clk 0:01:32.4]} 20. Qb3 {[%clk 0:00:35.4]} 20... Qxb3 {[%clk 0:01:32]} 21.
axb3 {[%clk 0:00:32.4]} 21... cxd4 {[%clk 0:01:30]} 22. exd4 {[%clk 0:00:30.7]}
22... Rfb8 {[%clk 0:01:31.5]} 23. Nb5 {[%clk 0:00:23.8]} 23... Rb7 {[%clk
0:01:30.7]} 24. Ra1 {[%clk 0:00:17]} 24... Rab8 {[%clk 0:01:30.8]} 0-1

[Event "*** Titled Tuesday Blitz"]
[Site "Chess.com"]
[Date "2019.07.02"]
[Round "1"]
[White "Superfelix"]
[Black "Padenie_Zvezd"]
[Result "0-1"]
[WhiteElo "2333"]
[BlackElo "2685"]
[TimeControl "180+2"]
[EndTime "13:06:33 PDT"]
[Termination "Padenie_Zvezd won by resignation"]

1. e4 {[%clk 0:03:00]} 1... c5 {[%clk 0:02:59.9]} 2. Nf3 {[%clk 0:03:00.6]} 2...
Nc6 {[%clk 0:03:00.7]} 3. Bb5 {[%clk 0:03:00.9]} 3... e6 {[%clk 0:02:59.6]} 4.
O-O {[%clk 0:02:59.6]} 4... Nge7 {[%clk 0:03:00.3]} 5. Re1 {[%clk 0:03:00.6]}
5... a6 {[%clk 0:02:59.9]} 6. Bf1 {[%clk 0:03:01.4]} 6... d5 {[%clk 0:03:00.1]}
7. exd5 {[%clk 0:03:00.6]} 7... Nxd5 {[%clk 0:03:02]} 8. d4 {[%clk 0:03:01.7]}
8... Nf6 {[%clk 0:03:01.8]} 9. Be3 {[%clk 0:02:56]} 9... Be7 {[%clk 0:03:02.8]}
10. Nc3 {[%clk 0:02:53.5]} 10... O-O {[%clk 0:02:52.8]} 11. h3 {[%clk
0:02:49.8]} 11... Qa5 {[%clk 0:02:42.3]} 12. a3 {[%clk 0:02:47.4]} 12... Rd8
{[%clk 0:02:41.5]} 13. Ne2 {[%clk 0:02:30.1]} 13... e5 {[%clk 0:02:14.5]} 14. c3
{[%clk 0:02:28]} 14... exd4 {[%clk 0:02:01.3]} 15. cxd4 {[%clk 0:02:28.9]} 15...
Nd5 {[%clk 0:02:01.9]} 16. Qc2 {[%clk 0:02:20.2]} 16... Nxe3 {[%clk 0:02:00.6]}
17. fxe3 {[%clk 0:02:20.8]} 17... cxd4 {[%clk 0:01:53.1]} 18. Nexd4 {[%clk
0:02:21.6]} 18... Nxd4 {[%clk 0:01:51.6]} 19. exd4 {[%clk 0:02:23.5]} 19... Bf6
{[%clk 0:01:49.7]} 20. Ne5 {[%clk 0:02:14.8]} 20... Qb6 {[%clk 0:01:35.3]} 21.
Rad1 {[%clk 0:02:10.1]} 21... Be6 {[%clk 0:01:35.6]} 22. Nc4 {[%clk 0:01:56.1]}
22... Bxd4+ {[%clk 0:01:33.2]} 23. Kh1 {[%clk 0:01:54.1]} 23... Qc7 {[%clk
0:01:33.7]} 24. Rxe6 {[%clk 0:01:48.4]} 24... fxe6 {[%clk 0:01:33.8]} 25. Qe4
{[%clk 0:01:48.9]} 25... e5 {[%clk 0:01:34.9]} 26. Bd3 {[%clk 0:01:48.3]} 26...
g6 {[%clk 0:01:36.1]} 27. Qg4 {[%clk 0:01:41.1]} 27... Rf8 {[%clk 0:01:35.2]}
28. Nd2 {[%clk 0:01:34.4]} 28... Kg7 {[%clk 0:01:33.7]} 29. Nf3 {[%clk
0:01:34.1]} 29... Rf4 {[%clk 0:01:30.9]} 30. Qg3 {[%clk 0:01:26.5]} 30... Raf8
{[%clk 0:01:27.6]} 31. Ng5 {[%clk 0:01:25.1]} 31... Qb6 {[%clk 0:01:24.5]} 32.
Bc4 {[%clk 0:01:21.7]} 32... R8f6 {[%clk 0:01:17.6]} 33. Bd5 {[%clk 0:01:19.8]}
33... Rf1+ {[%clk 0:01:16.5]} 34. Rxf1 {[%clk 0:01:18.1]} 34... Rxf1+ {[%clk
0:01:18.4]} 35. Kh2 {[%clk 0:01:19.2]} 35... Bg1+ {[%clk 0:01:20.3]} 0-1

[Event "*** Titled Tuesday Blitz"]
[Site "Chess.com"]
[Date "2019.07.02"]
[Round "1"]
[White "rasmussvane"]
[Black "3f32"]
[Result "1-0"]
[WhiteElo "2896"]
[BlackElo "2453"]
[TimeControl "180+2"]
[EndTime "13:06:37 PDT"]
[Termination "rasmussvane won by resignation"]

1. Nf3 {[%clk 0:03:01.9]} 1... d5 {[%clk 0:03:00]} 2. g3 {[%clk 0:03:02.2]} 2...
g6 {[%clk 0:02:59.4]} 3. Bg2 {[%clk 0:03:03.8]} 3... Bg7 {[%clk 0:02:58.3]} 4.
d4 {[%clk 0:03:05.3]} 4... Nd7 {[%clk 0:02:56.7]} 5. O-O {[%clk 0:03:05.9]} 5...
Ngf6 {[%clk 0:02:57.5]} 6. a4 {[%clk 0:03:05.9]} 6... a5 {[%clk 0:02:57.1]} 7.
Na3 {[%clk 0:03:03.9]} 7... Nb6 {[%clk 0:02:42.1]} 8. b3 {[%clk 0:03:02.8]} 8...
O-O {[%clk 0:02:41.8]} 9. c4 {[%clk 0:02:49.6]} 9... dxc4 {[%clk 0:02:35.9]} 10.
bxc4 {[%clk 0:02:51.5]} 10... Ne4 {[%clk 0:02:34.6]} 11. Be3 {[%clk 0:02:11.5]}
11... c5 {[%clk 0:02:16.1]} 12. Rc1 {[%clk 0:01:47.8]} 12... cxd4 {[%clk
0:02:01.5]} 13. Nxd4 {[%clk 0:01:49.7]} 13... Nc5 {[%clk 0:01:59]} 14. Nc6
{[%clk 0:01:45.1]} 14... Qxd1 {[%clk 0:00:57.3]} 15. Nxe7+ {[%clk 0:01:46]}
15... Kh8 {[%clk 0:00:58.1]} 16. Rfxd1 {[%clk 0:01:47.9]} 16... Nbxa4 {[%clk
0:00:59]} 17. Nb5 {[%clk 0:01:49.6]} 17... Bg4 {[%clk 0:00:51.4]} 18. Rd5 {[%clk
0:01:38.4]} 18... Rae8 {[%clk 0:00:49.2]} 19. Rxc5 {[%clk 0:01:29.4]} 19... Nxc5
{[%clk 0:00:51.1]} 20. Bxc5 {[%clk 0:01:29.8]} 20... Bxe2 {[%clk 0:00:45.9]} 21.
Bxb7 {[%clk 0:01:27.6]} 21... Rb8 {[%clk 0:00:41.4]} 22. Bd5 {[%clk 0:01:25.6]}
22... a4 {[%clk 0:00:33.1]} 23. Nc6 {[%clk 0:01:25.5]} 23... Rfc8 {[%clk
0:00:22.2]} 24. Nxb8 {[%clk 0:01:24.3]} 24... Rxc5 {[%clk 0:00:23.3]} 25. Nd7
{[%clk 0:01:21.4]} 25... Rc8 {[%clk 0:00:20.2]} 26. Nb6 {[%clk 0:01:19.3]} 26...
Rd8 {[%clk 0:00:15.2]} 27. Nxa4 {[%clk 0:01:18.9]} 27... Bh6 {[%clk 0:00:16.6]}
28. Re1 {[%clk 0:01:17.3]} 1-0